lending/lending_fUSD_20251018
["ID","MTS","AMOUNT","RATE_DAILY","PERIOD"]
[391772948,1760794254819,-500.0,0.0003041,2]
[391772949,1760794254827,-537.48189575,0.0003041,2]
[391772950,1760794254836,-500.0,0.0003041,2]
[391772951,1760794254846,-360.50624652,0.0003041,2]
[391772952,1760794254859,-500.0,0.0003041,2]
[391772953,1760794254868,-500.0,0.0003041,2]
[391772954,1760794254878,-500.0,0.0003041,2]
[391772955,1760794254887,-616.43,0.0003041,2]
[391772956,1760794254898,-500.0,0.0003041,2]
[391772957,1760794254907,-500.0,0.0003041,2]
[391772958,1760794254917,-571.54097239,0.0003041,2]
[391772959,1760794254927,-290.77243602,0.0003041,2]
[391772960,1760794254938,-500.0,0.0003041,2]
[391772961,1760794254948,-199.17,0.0003041,2]
[391772962,1760794254959,-500.0,0.0003041,2]
[391772963,1760794254968,-500.0,0.0003041,2]
[391772964,1760794254978,-500.0,0.0003041,2]
[391772965,1760794254987,-500.0,0.0003041,2]
[391772966,1760794254996,-500.0,0.0003041,2]
[391772967,1760794255005,-500.0,0.0003041,2]
[391772968,1760794255015,-788.84,0.0003041,2]
[391772969,1760794255025,-318.84115891,0.0003041,2]
[391772970,1760794255035,-700.21,0.0003041,2]
[391772971,1760794255044,-500.0,0.0003041,2]
[391772972,1760794255053,-1665.46,0.0003041,2]
[391772973,1760794255063,-500.0,0.0003041,2]
[391772974,1760794255071,-500.0,0.0003041,2]
[391772975,1760794255083,-905.02,0.0003041,2]
[391772976,1760794255096,-500.0,0.0003041,2]
[391772977,1760794255106,-608.98144473,0.0003041,2]
[391772978,1760794255118,-500.0,0.0003041,2]
[391772979,1760794255128,-500.0,0.0003041,2]
[391772980,1760794255138,-500.0,0.0003041,2]
[391772981,1760794255147,-500.0,0.0003041,2]
[391772982,1760794255157,-500.0,0.0003041,2]
[391772983,1760794255166,-500.0,0.0003041,2]
[391772984,1760794255175,-500.0,0.0003041,2]
[391772985,1760794255184,-500.0,0.0003041,2]
[391772986,1760794255194,-500.0,0.0003041,2]
[391772987,1760794255204,-500.0,0.0003041,2]
[391772988,1760794255214,-239.79234178,0.0003041,2]
[391772989,1760794255225,-500.0,0.0003041,2]
[391772990,1760794255234,-500.0,0.0003041,2]
[391772991,1760794255244,-483.50846698,0.0003041,2]
[391772992,1760794255256,-500.0,0.0003041,2]
[391772993,1760794255265,-500.0,0.0003041,2]
[391772994,1760794255275,-500.0,0.0003041,2]
[391772995,1760794255285,-500.0,0.0003041,2]
[391772996,1760794255295,-500.0,0.0003041,2]
[391772997,1760794255306,-500.0,0.0003041,2]
[391772998,1760794255315,-500.0,0.0003041,2]
[391772999,1760794255326,-178.18,0.0003041,2]
[391773000,1760794255337,-500.0,0.0003041,2]
[391773001,1760794255347,-500.0,0.0003041,2]
[391773002,1760794255357,-500.0,0.0003041,2]
[391773003,1760794255366,-500.0,0.0003041,2]
[391773004,1760794255375,-500.0,0.0003041,2]
[391773005,1760794255384,-500.0,0.0003041,2]
[391773006,1760794255393,-552.48,0.0003041,2]
[391773007,1760794255403,-500.0,0.0003041,2]
[391773008,1760794255412,-500.0,0.0003041,2]
[391773009,1760794255421,-200.35932257,0.0003041,2]
[391773010,1760794255430,-500.0,0.0003041,2]
[391773011,1760794255441,-500.0,0.0003041,2]
[391773012,1760794255450,-500.0,0.0003041,2]
[391773013,1760794255460,-500.0,0.0003041,2]
[391773014,1760794255470,-389.46108541,0.0003041,2]
[391773015,1760794255480,-500.0,0.0003041,2]
[391773016,1760794255491,-500.0,0.0003041,2]
[391773017,1760794255501,-500.0,0.0003041,2]
[391773018,1760794255510,-516.26868354,0.0003041,2]
[391773019,1760794255520,-500.0,0.0003041,2]
[391773020,1760794255530,-500.0,0.0003041,2]
[391773021,1760794255541,-500.0,0.0003041,2]
[391773022,1760794255552,-500.0,0.0003041,2]
[391773023,1760794255562,-157.24091601,0.0003041,2]
[391773024,1760794255571,-500.0,0.0003041,2]
[391773025,1760794255581,-500.0,0.0003041,2]
[391773026,1760794255590,-500.0,0.0003041,2]
[391773027,1760794255600,-500.0,0.0003041,2]
[391773028,1760794255609,-4692.7494428,0.00030446,2]
[391773029,1760794255619,-161.42072179,0.00030473,5]
[391773030,1760794255628,-932.75285,0.0003051,2]
[391773031,1760794255637,-184.47,0.00030525,2]
[391773032,1760794255646,-571.0,0.00030532,2]
[391773033,1760794255656,-1310.0,0.00030532,2]
[391773034,1760794255665,-605.0,0.00030532,2]
[391773035,1760794255674,-1589.0,0.00030532,2]
[391773036,1760794255684,-817.0,0.00030532,2]
[391773037,1760794255693,-2546.0,0.00030532,2]
[391773038,1760794255702,-902.0,0.00030532,2]
[391773039,1760794255711,-1183.0,0.00030532,2]
[391773040,1760794255721,-3408.0,0.00030532,2]
[391773041,1760794255730,-6437.0,0.00030532,2]
[391773042,1760794255865,-750.0,0.00030532,2]
[391773043,1760794255875,-1267.0,0.00030532,2]
[391773044,1760794255885,-2050.0,0.00030532,2]
[391773045,1760794255895,-204.08902923,0.00030631,2]
[391773046,1760794255905,-400.0,0.00030658,5]
[391773047,1760794255917,-201.67462191,0.00030674,2]
[391773048,1760794255927,-300.0,0.00030683,10]
[391773049,1760794255939,-302.85637029,0.00030683,10]
[391773050,1760794255950,-999.0,0.00030683,120]
[391773051,1760794255961,-500.0,0.00030684,15]
[391773052,1760794255971,-500.0,0.00030684,2]
[391773053,1760794255980,-428.72877053,0.00030684,2]
[391773054,1760794255989,-500.0,0.00030684,2]
[391773055,1760794255999,-224.24778977,0.00030684,2]
[391773056,1760794256009,-603.62246677,0.00030684,2]
[391773057,1760794256019,-612.69962943,0.00030684,2]
[391773058,1760794256029,-583.46153994,0.00030684,2]
[391773059,1760794256040,-500.0,0.00030684,2]
[391773060,1760794256051,-266.77214723,0.00030684,2]
[391773061,1760794256060,-500.0,0.00030684,2]
[391773062,1760794256069,-506.39955562,0.00030684,2]
[391773063,1760794256078,-214.88339504,0.00030684,2]
[391773064,1760794256087,-630.08128439,0.00030684,2]
[391773065,1760794256096,-234.2629547,0.00030684,2]
[391773066,1760794256106,-534.77056494,0.00030684,2]
[391773067,1760794256116,-338.24417893,0.00030684,2]
[391773068,1760794256127,-188.51877081,0.00030684,2]
[391773069,1760794256138,-336.17191671,0.00030684,2]
[391773070,1760794256148,-635.30307215,0.00030684,2]
[391773071,1760794256158,-500.0,0.00030684,2]
[391773072,1760794256168,-500.0,0.00030684,2]
[391773073,1760794256177,-277.44025851,0.00030684,2]
[391773074,1760794256187,-500.0,0.00030684,2]
[391773075,1760794256197,-430.21140562,0.00030684,2]
[391773076,1760794256207,-500.0,0.00030684,2]
[391773077,1760794256216,-433.88169378,0.00030684,2]
[391773078,1760794256226,-500.0,0.00030684,2]
[391773079,1760794256235,-500.0,0.00030684,2]
[391773080,1760794256245,-500.0,0.00030684,2]
[391773081,1760794256254,-500.0,0.00030684,2]
[391773082,1760794256264,-809.82,0.00030684,2]
[391773083,1760794256273,-167.55312881,0.00030684,2]
[391773084,1760794256284,-151.68458945,0.00030684,2]
[391773085,1760794256293,-311.24565208,0.00030684,2]
[391773086,1760794256303,-331.62842688,0.00030684,2]
[391773087,1760794256313,-500.0,0.00030684,2]
[391773088,1760794256322,-500.0,0.00030684,2]
[391773089,1760794256332,-500.0,0.00030684,2]
[391773090,1760794256342,-500.0,0.00030684,2]
[391773091,1760794256351,-500.0,0.00030684,2]
[391773092,1760794256361,-1024.41,0.00030684,2]
[391773093,1760794256371,-411.15580093,0.00030684,2]
[391773094,1760794256380,-500.0,0.00030684,2]
[391773095,1760794256390,-500.0,0.00030684,2]
[391773096,1760794256399,-500.0,0.00030684,2]
[391773097,1760794256409,-239.67325607,0.00030684,2]
[391773098,1760794256419,-500.0,0.00030684,2]
[391773099,1760794256428,-523.18,0.00030684,2]
[391773100,1760794256438,-500.0,0.00030684,2]
[391773101,1760794256448,-500.0,0.00030684,2]
[391773102,1760794256457,-500.0,0.00030684,2]
[391773103,1760794256467,-500.0,0.00030684,2]
[391773104,1760794256475,-500.0,0.00030684,2]
[391773105,1760794256485,-500.0,0.00030684,2]
[391773106,1760794256495,-500.0,0.00030684,2]
[391773107,1760794256504,-500.0,0.00030684,2]
[391773108,1760794256514,-500.0,0.00030684,2]
[391773109,1760794256524,-500.0,0.00030684,2]
[391773110,1760794256534,-500.0,0.00030684,2]
[391773111,1760794256544,-1026.91,0.00030684,2]
[391773112,1760794256554,-559.65,0.00030684,2]
[391773113,1760794256563,-268.79119772,0.00030684,2]
[391773114,1760794256573,-500.0,0.00030684,2]
[391773115,1760794256583,-330.46457992,0.00030684,2]
[391773116,1760794256592,-500.0,0.00030684,2]
[391773117,1760794256601,-500.0,0.00030684,2]
[391773118,1760794256610,-636.20065688,0.00030684,2]
[391773119,1760794256621,-500.0,0.00030684,2]
[391773120,1760794256632,-500.0,0.00030684,2]
[391773121,1760794256641,-357.50644849,0.00030684,2]
[391773122,1760794256651,-237.69417236,0.00030684,2]
[391773123,1760794256661,-553.42,0.00030684,2]
[391773124,1760794256671,-500.0,0.00030684,2]
[391773125,1760794256680,-500.0,0.00030684,2]
[391773126,1760794256690,-500.0,0.00030684,2]
[391773127,1760794256699,-500.0,0.00030684,2]
[391773128,1760794256709,-270.02547131,0.00030684,2]
[391773129,1760794256718,-598.48465414,0.00030684,2]
[391773130,1760794256727,-500.0,0.00030684,2]
[391773131,1760794256736,-177.12647309,0.00030684,2]
[391773132,1760794256746,-500.0,0.00030684,2]
[391773133,1760794256756,-488.83554237,0.00030684,2]
[391773134,1760794256765,-500.0,0.00030684,2]
[391773135,1760794256775,-500.0,0.00030684,2]
[391773136,1760794256785,-584.84653005,0.00030684,2]
[391773137,1760794256794,-500.0,0.00030684,2]
[391773138,1760794256804,-500.0,0.00030684,2]
[391773139,1760794256814,-500.0,0.00030684,2]
[391773140,1760794256823,-500.0,0.00030684,2]
[391773141,1760794256833,-500.0,0.00030684,2]
[391773142,1760794256842,-500.0,0.00030684,2]
[391773143,1760794256851,-500.0,0.00030684,2]
[391773144,1760794256865,-500.0,0.00030684,2]
[391773145,1760794256876,-351.48289433,0.00030684,2]
[391773146,1760794256885,-500.0,0.00030684,2]
[391773147,1760794256895,-500.0,0.00030684,2]
[391773148,1760794256905,-262.51402386,0.00030684,2]
[391773149,1760794256914,-500.0,0.00030684,2]
[391773150,1760794256924,-500.0,0.00030684,2]
[391773151,1760794256935,-179.37816089,0.00030684,2]
[391773152,1760794256944,-500.0,0.00030684,2]
[391773153,1760794256954,-281.51487804,0.00030684,2]
[391773154,1760794256963,-600.48172462,0.00030684,2]
[391773155,1760794256973,-500.0,0.00030684,2]
[391773156,1760794256982,-500.0,0.00030684,2]
[391773157,1760794256991,-554.00547843,0.00030684,2]
[391773158,1760794257000,-2069.88,0.00030684,2]
[391773159,1760794257010,-509.70632674,0.00030684,2]
[391773160,1760794257019,-158.94241321,0.00030684,2]
[391773161,1760794257028,-500.0,0.00030684,2]
[391773162,1760794257039,-500.0,0.00030684,2]
[391773163,1760794257049,-156.67523462,0.00030684,2]
[391773164,1760794257059,-2233.82713928,0.00030684,2]
[391773165,1760794257247,-218.01286072,0.00030684,2]
[391773166,1760794257258,-230.79642575,0.00030684,2]
[391773167,1760794257386,-500.15255667,0.00030136,2]
[391773168,1760794257396,-800.0,0.0003044,7]
[391773169,1760794257406,-269.20357425,0.00030684,2]
[391773170,1760794257416,-500.0,0.00030684,2]
[391773171,1760794257425,-500.0,0.00030684,2]
[391773172,1760794257434,-26.2745,0.00030684,2]
[391773173,1760794257448,-160.6355,0.00030684,2]
[391773174,1760794257458,-500.0,0.00030684,2]
[391773175,1760794257467,-500.0,0.00030684,2]
[391773176,1760794257477,-500.0,0.00030684,2]
[391773177,1760794257486,-376.7966439,0.00030684,2]
[391773178,1760794257495,-500.0,0.00030684,2]
[391773179,1760794257505,-555.40988839,0.00030684,2]
[391773180,1760794257514,-500.0,0.00030684,2]
[391773181,1760794257523,-500.0,0.00030684,2]
[391773182,1760794257533,-392.47927554,0.00030684,2]
[391773183,1760794257543,-515.58836951,0.00030684,2]
[391773184,1760794257552,-500.0,0.00030684,2]
[391773185,1760794257562,-500.0,0.00030684,2]
[391773186,1760794257572,-500.0,0.00030684,2]
[391773187,1760794257582,-500.0,0.00030684,2]
[391773188,1760794257591,-365.11507257,0.00030684,2]
[391773194,1760794449446,374.948161,0.00032678,120]
[391773195,1760794454043,214.132239,0.00032678,120]
[391773200,1760794939523,374.948161,0.00032699,120]
[391773201,1760794941374,374.948161,0.00032699,120]
[391773202,1760794943678,374.948161,0.00032699,120]
[391773203,1760794975379,214.132239,0.00032699,120]
[391773204,1760794978334,374.948161,0.00032699,120]
[391773205,1760794980089,214.132239,0.00032699,120]
[391773206,1760794982185,214.132239,0.00032699,120]
[391773207,1760795020117,374.948161,0.00032702,120]
[391773208,1760795023707,374.948161,0.00032702,120]
[391773209,1760795024200,374.948161,0.00032702,120]
[391773210,1760795025646,374.948161,0.00032702,120]
[391773211,1760795027847,214.132239,0.00032702,120]
[391773212,1760795028478,374.948161,0.00032702,120]
[391773213,1760795030094,374.948161,0.00032702,120]
[391773214,1760795031120,214.132239,0.00032702,120]
[391773215,1760795031491,374.948161,0.00032702,120]
[391773216,1760795031847,214.132239,0.00032702,120]
[391773217,1760795032092,374.948161,0.00032702,120]
[391773218,1760795032264,214.132239,0.00032702,120]
[391773219,1760795032854,214.132239,0.00032702,120]
[391773220,1760795033300,214.132239,0.00032702,120]
[391773221,1760795033338,168.765868,0.00032702,120]
[391773222,1760795035041,374.948161,0.00032702,120]
[391773223,1760795036190,214.132239,0.00032702,120]
[391773224,1760795037309,168.765868,0.00032702,120]
[391773225,1760795038304,374.948161,0.00032702,120]
[391773226,1760795039071,168.765868,0.00032702,120]
[391773227,1760795039523,168.765868,0.00032702,120]
[391773228,1760795040294,168.765868,0.00032702,120]
[391773229,1760795040477,214.132239,0.00032702,120]
[391773230,1760795040597,168.765868,0.00032702,120]
[391773231,1760795040683,214.132239,0.00032702,120]
[391773232,1760795041023,168.765868,0.00032702,120]
[391773233,1760795041963,214.132239,0.00032702,120]
[391773234,1760795042225,168.765868,0.00032702,120]
[391773235,1760795045664,374.948161,0.00032702,120]
[391773236,1760795045771,214.132239,0.00032702,120]
[391773237,1760795046209,214.132239,0.00032702,120]
[391773238,1760795046617,214.132239,0.00032702,120]
[391773239,1760795046773,374.948161,0.00032702,120]
[391773240,1760795047191,214.132239,0.00032702,120]
[391773241,1760795047229,374.948161,0.00032702,120]
[391773242,1760795047697,214.132239,0.00032702,120]
[391773243,1760795047735,374.948161,0.00032702,120]
[391773244,1760795047777,168.765868,0.00032702,120]
[391773245,1760795048146,214.132239,0.00032702,120]
[391773246,1760795048182,374.948161,0.00032702,120]
[391773247,1760795048240,168.765868,0.00032702,120]
[391773248,1760795048655,374.948161,0.00032702,120]
[391773249,1760795048742,168.765868,0.00032702,120]
[391773250,1760795048781,214.132239,0.00032702,120]
[391773251,1760795049057,374.948161,0.00032702,120]
[391773252,1760795049221,168.765868,0.00032702,120]
[391773253,1760795049789,214.132239,0.00032702,120]
[391773254,1760795050031,374.948161,0.00032702,120]
[391773255,1760795050189,214.132239,0.00032702,120]
[391773256,1760795050446,374.948161,0.00032702,120]
[391773257,1760795050679,168.765868,0.00032702,120]
[391773258,1760795050717,214.132239,0.00032702,120]
[391773259,1760795050930,168.765868,0.00032702,120]
[391773260,1760795051394,168.765868,0.00032702,120]
[391773261,1760795051715,168.765868,0.00032702,120]
[391773262,1760795053804,168.765868,0.00032702,120]
[391773263,1760795054978,168.765868,0.00032702,120]
[391773264,1760795055406,168.765868,0.00032702,120]
[391773265,1760795060510,168.765868,0.00032702,120]
[391773266,1760795062211,168.765868,0.00032702,120]
[391773267,1760795065976,168.765868,0.00032702,120]
[391773268,1760795071565,168.765868,0.00032702,120]
[391773269,1760795072236,168.765868,0.00032702,120]
[391773277,1760795416953,-186.8343668,0.00013699,2]
[391773281,1760795432256,-0.6156332,0.00013699,2]
[391773282,1760795432265,-1200.0,0.00015067,2]
[391773283,1760795432275,-938.50488591,0.00015068,2]
[391773284,1760795432284,-150.0,0.00015068,2]
[391773285,1760795432294,-2500.0,0.00015068,2]
[391773286,1760795432303,-300.0,0.00015068,2]
[391773287,1760795432312,-300.0,0.00015068,2]
[391773288,1760795432322,-300.0,0.00016572,2]
[391773289,1760795432331,-1680.0,0.00016573,2]
[391773290,1760795432340,-250.0,0.00017,2]
[391773291,1760795432349,-2351.0,0.00018229,2]
[391773292,1760795432358,-206.9722523,0.00019,2]
[391773293,1760795432381,-93.0277477,0.00019,2]
[391773294,1760795432390,-187.45,0.00020187,2]
[391773295,1760795432400,-374.948161,0.00022438,2]
[391773296,1760795432409,-214.132239,0.00022438,2]
[391773297,1760795432418,-168.765868,0.00022438,2]
[391773298,1760795432427,-374.948161,0.00022685,2]
[391773299,1760795432437,-214.132239,0.00022685,2]
[391773300,1760795432446,-168.765868,0.00022685,2]
[391773301,1760795432455,-374.948161,0.0002293,2]
[391773302,1760795432464,-214.132239,0.0002293,2]
[391773303,1760795432473,-168.765868,0.0002293,2]
[391773304,1760795432482,-201.124426,0.00023177,2]
[391773305,1760795432491,-374.948161,0.00023177,2]
[391773306,1760795432501,-214.132239,0.00023177,2]
[391773307,1760795432510,-168.765868,0.00023177,2]
[391773308,1760795432528,-300.0,0.00025785,2]
[391773309,1760795432540,-9539.43,0.00025786,2]
[391773310,1760795432549,-2876.20390268,0.00025786,2]
[391773311,1760795432562,-5517.23571349,0.00025786,2]
[391773312,1760795432574,-1606.55038383,0.00025786,2]
[391773313,1760795432583,-500.0,0.00025933,2]
[391773314,1760795432592,-339.31532798,0.00025933,2]
[391773315,1760795432601,-150.0,0.00026293,2]
[391773317,1760795432611,-151.0,0.00026342,2]
[391773319,1760795432621,-151.0,0.00026342,2]
[391773321,1760795432639,-151.0,0.00026342,2]
[391773323,1760795432652,-151.0,0.00026342,2]
[391773324,1760795432667,-1.30029683,0.00026342,2]
[391773325,1760795432684,-149.69970317,0.00026342,2]
[391773326,1760795432696,-151.0,0.00026342,2]
[391773327,1760795432709,-151.0,0.00026342,2]
[391773328,1760795432721,-151.0,0.00026342,2]
[391773329,1760795432734,-152.0664384,0.00026342,2]
[391773330,1760795432746,-151.0,0.00026342,2]
[391773331,1760795432759,-151.0,0.00026342,2]
[391773332,1760795432771,-283.87306375,0.00026342,2]
[391773333,1760795432784,-200.0,0.00026342,2]
[391773334,1760795432796,-187.45,0.00026676,2]
[391773335,1760795432809,-203.23421093,0.00026733,2]
[391773336,1760795432823,-296.76578907,0.00026733,2]
[391773337,1760795432836,-500.0,0.00026733,2]
[391773338,1760795432849,-500.0,0.00026733,2]
[391773339,1760795432860,-356.1994359,0.00026733,2]
[391773340,1760795432873,-500.0,0.00026733,2]
[391773341,1760795432885,-500.0,0.00026733,2]
[391773342,1760795432896,-86.85837827,0.00026733,2]
[391773343,1760795432924,-421.87768396,0.00026733,2]
[391773344,1760795432937,-1000.0,0.0002678,2]
[391773345,1760795432949,-838.832,0.00026814,14]
[391773346,1760795432960,-150.0,0.00026945,2]
[391773347,1760795432972,-666.0,0.00026945,3]
[391773348,1760795432985,-200.0,0.00026985,2]
[391773349,1760795432996,-151.0,0.00027171,2]
[391773350,1760795433008,-721.12765535,0.00027171,2]
[391773351,1760795433021,-151.0,0.00027171,2]
[391773352,1760795433033,-151.0,0.00027171,2]
[391773353,1760795433048,-151.0,0.00027171,2]
[391773354,1760795433060,-91.2833323,0.00027171,2]
[391773355,1760795433074,-59.7166677,0.00027171,2]
[391773356,1760795433089,-7756.37363978,0.00027171,2]
[391773357,1760795433100,-1000.0,0.00027171,2]
[391773358,1760795433113,-1000.0,0.00027171,2]
[391773359,1760795433125,-3000.0,0.00027171,2]
[391773360,1760795433136,-1000.0,0.00027171,2]
[391773361,1760795433148,-3000.0,0.00027171,2]
[391773362,1760795433160,-277.35679052,0.00027171,2]
[391773363,1760795433171,-3000.0,0.00027171,2]
[391773364,1760795433183,-1000.0,0.00027171,2]
[391773365,1760795433195,-1000.0,0.00027171,2]
[391773366,1760795433207,-1000.0,0.00027171,2]
[391773367,1760795433223,-1000.0,0.00027171,2]
[391773368,1760795433237,-1000.0,0.00027171,2]
[391773369,1760795433252,-1000.0,0.00027171,2]
[391773370,1760795433265,-1000.15617386,0.00027171,2]
[391773371,1760795433277,-681.39672814,0.00027171,2]
[391773383,1760795438129,-318.60327186,0.00027171,2]
[391773384,1760795438141,-1000.0,0.00027171,2]
[391773385,1760795438152,-236.84863502,0.00027171,2]
[391773386,1760795438163,-1000.0,0.00027171,2]
[391773387,1760795438174,-93.69803725,0.00027171,2]
[391773388,1760795438187,-906.30196275,0.00027171,2]
[391773389,1760795438198,-1000.0,0.00027171,2]
[391773390,1760795438208,-1000.0,0.00027171,2]
[391773391,1760795438219,-1000.0,0.00027171,2]
[391773392,1760795438230,-1000.0,0.00027171,2]
[391773393,1760795438241,-151.0,0.00027171,2]
[391773394,1760795438252,-954.67157398,0.00027171,2]
[391773395,1760795438265,-45.32842602,0.00027171,2]
[391773396,1760795438276,-738.67157398,0.00027171,2]
[391773397,1760795438351,-261.32842602,0.00027171,2]
[391773398,1760795438362,-574.92473347,0.00027171,2]
[391773399,1760795438373,-500.0,0.00027171,2]
[391773400,1760795438384,-500.0,0.00027171,2]
[391773401,1760795438395,-322.6107,0.00027171,2]
[391773402,1760795438406,-46.13614076,0.00027171,2]
[391773424,1760795440310,-253.86385924,0.00027171,2]
[391773425,1760795440320,-1000.0,0.00027281,2]
[391773426,1760795440533,-153.0,0.0002742,2]
[391773427,1760795440551,-153.0,0.0002742,2]
[391773428,1760795440563,-500.0,0.00027829,5]
[391773429,1760795440574,-900.0,0.00028,2]
[391773430,1760795440583,-500.0,0.00028159,2]
[391773431,1760795440593,-4412.2,0.00028565,2]
[391773432,1760795440602,-1111.86,0.00028788,2]
[391773433,1760795440611,-250.0,0.00028831,7]
[391773434,1760795440621,-1025.0,0.00029,3]
[391773435,1760795440633,-154.12747994,0.00029145,7]
[391773436,1760795440649,-150.0,0.00029145,7]
[391773437,1760795440658,-150.0,0.00029145,7]
[391773438,1760795440667,-150.00000001,0.00029145,7]
[391773439,1760795440676,-1060.36000329,0.00029763,2]
[391773440,1760795440686,-510.0,0.00029898,2]
[391773441,1760795440695,-820.7034,0.000299,2]
[391773442,1760795440704,-500.0,0.00029997,2]
[391773443,1760795440713,-500.0,0.00029997,2]
[391773444,1760795440723,-575.35670999,0.00029997,2]
[391773445,1760795440739,-500.0,0.00029997,2]
[391773446,1760795440749,-408.9267706,0.00029997,2]
[391773447,1760795440758,-500.0,0.00029999,2]
[391773448,1760795440768,-500.0,0.00029999,2]
[391773449,1760795440778,-2105.70680795,0.0003,3]
[391773450,1760795440787,-158.0,0.0003,14]
[391773451,1760795440796,-6311.41845366,0.00030026,2]
[391773452,1760795440807,-2500.0,0.00030036,2]
[391773453,1760795440816,-33127.282,0.00030036,2]
[391773454,1760795440825,-1000.0,0.00030036,2]
[391773455,1760795440835,-1000.0,0.00030036,2]
[391773456,1760795440844,-2250.4204,0.00030036,3]
[391773457,1760795440854,-200.0,0.00030099,2]
[391773458,1760795440864,-19056.3258374,0.00030126,2]
[391773459,1760795440873,-727.94,0.00030126,2]
[391773460,1760795440883,-271.18,0.00030126,3]
[391773461,1760795440892,-1000.0,0.00030128,2]
[391773462,1760795440901,-151.0,0.00030133,7]
[391773463,1760795440910,-500.0,0.00030135,2]
[391773464,1760795440919,-500.0,0.00030135,2]
[391773465,1760795440930,-500.0,0.00030135,2]
[391773466,1760795440939,-500.0,0.00030135,2]
[391773467,1760795440948,-244.53193848,0.00030135,2]
[391773468,1760795440957,-500.0,0.00030135,2]
[391773469,1760795440967,-500.0,0.00030135,2]
[391773470,1760795440976,-500.0,0.00030135,2]
[391773471,1760795440985,-500.0,0.00030135,2]
[391773472,1760795440994,-500.0,0.00030135,2]
[391773473,1760795441005,-500.0,0.00030135,2]
[391773474,1760795441014,-500.0,0.00030135,2]
[391773475,1760795441023,-500.0,0.00030135,2]
[391773476,1760795441032,-500.0,0.00030135,2]
[391773477,1760795441042,-500.0,0.00030135,2]
[391773478,1760795441050,-500.0,0.00030135,2]
[391773479,1760795441059,-608.36371229,0.00030135,2]
[391773480,1760795441068,-500.0,0.00030135,2]
[391773481,1760795441077,-500.0,0.00030135,2]
[391773482,1760795441086,-500.0,0.00030135,2]
[391773483,1760795441096,-500.0,0.00030135,2]
[391773484,1760795441106,-500.0,0.00030135,2]
[391773485,1760795441115,-500.0,0.00030135,2]
[391773486,1760795441124,-264.44066034,0.00030135,2]
[391773487,1760795441134,-605.07357499,0.00030136,2]
[391773488,1760795441143,-500.55262916,0.00030136,2]
[391773489,1760795441152,-500.0,0.00030136,2]
[391773490,1760795441162,-501.50975581,0.00030136,2]
[391773491,1760795441171,-502.97369403,0.00030136,2]
[391773492,1760795441180,-503.08970904,0.00030136,2]
[391773493,1760795441189,-502.00002246,0.00030136,2]
[391773494,1760795441199,-500.0,0.00030136,2]
[391773495,1760795441208,-500.0,0.00030136,2]
[391773496,1760795441217,-917.19,0.00030136,2]
[391773497,1760795441227,-510.22058299,0.00030136,2]
[391773498,1760795441236,-500.0,0.00030136,2]
[391773499,1760795441245,-500.0,0.00030136,2]
[391773500,1760795441255,-507.10004076,0.00030136,2]
[391773501,1760795441264,-225.7165201,0.00030136,2]
[391773502,1760795441273,-502.46187287,0.00030136,2]